bitfinex/quotes_BTCUSD_20250119
["timestamp","ask_amount","ask_price","bid_price","bid_amount"]
[1737256113381,0.18361404,104760.0,104750.0,0.286375]
[1737256113599,0.18361404,104760.0,104740.0,0.190937]
[1737256113800,0.35260528,104760.0,104750.0,0.095459]
[1737256114120,0.26823205,104760.0,104750.0,0.00536266]
[1737256115150,0.09924081,104760.0,104750.0,0.10082766]
[1737256121575,0.09764081,104760.0,104750.0,0.11177095]
[1737256123649,0.09764081,104760.0,104750.0,0.12931243]
[1737256124535,0.09764081,104760.0,104750.0,0.10384275]
[1737256124810,0.09764081,104760.0,104750.0,0.12621609]
[1737256125376,0.09764081,104760.0,104740.0,0.656012]
[1737256125572,0.09764081,104760.0,104750.0,0.09906483]
[1737256127883,0.26663105,104760.0,104750.0,0.00359983]
[1737256128445,0.52316529,104760.0,104750.0,0.00359983]
[1737256128756,0.64055005,104760.0,104730.0,0.50511149]
[1737256128905,0.07353424,104750.0,104740.0,0.02135303]
[1737256129100,0.17277505,104750.0,104740.0,0.02135303]
[1737256129309,0.36824005,104750.0,104740.0,0.02135303]
[1737256129512,0.38506507,104750.0,104740.0,0.02135303]
[1737256129940,0.36824005,104750.0,104740.0,0.02135303]
[1737256130357,0.36824005,104750.0,104740.0,0.00361036]
[1737256135096,0.36824005,104750.0,104740.0,0.02140419]
[1737256136277,0.36824005,104750.0,104740.0,0.02183289]
[1737256136652,0.36824005,104750.0,104740.0,0.03295198]
[1737256137491,0.37759894,104750.0,104740.0,0.03295198]
[1737256140048,0.38339894,104750.0,104740.0,0.03295198]
[1737256140472,0.76526794,104750.0,104730.0,0.08930804]
[1737256140669,0.17277505,104740.0,104730.0,0.08930804]
[1737256140885,0.09924081,104740.0,104730.0,0.08930804]
[1737256141315,0.09924081,104740.0,104730.0,0.16810804]
[1737256142025,0.45970635,104740.0,104720.0,0.286464]
[1737256142229,0.07353424,104730.0,104720.0,0.286464]
[1737256142375,0.17277505,104730.0,104720.0,0.286464]
[1737256142578,0.09924081,104730.0,104720.0,0.286464]
[1737256143266,0.09924081,104730.0,104720.0,0.095491]
[1737256145707,0.47892035,104730.0,104720.0,0.095491]
[1737256147963,0.79402472,104730.0,104720.0,0.095491]
[1737256149087,0.47892035,104730.0,104720.0,0.095491]
[1737256149427,0.47892035,104730.0,104720.0,0.0959197]
[1737256151374,0.47892035,104730.0,104720.0,0.11353604]
[1737256152127,0.31017389,104730.0,104720.0,0.11353604]
[1737256153461,0.62545642,104730.0,104720.0,0.12454804]
[1737256155011,0.60911265,104730.0,104720.0,0.12454804]
[1737256156620,0.50987184,104730.0,104720.0,0.12454804]
[1737256156756,0.38435849,104730.0,104720.0,0.19903717]
[1737256156934,0.38435849,104730.0,104720.0,0.27458228]
[1737256157139,0.38435849,104730.0,104720.0,0.20104804]
[1737256157971,0.48033379,104740.0,104730.0,0.095483]
[1737256158171,0.5795746,104740.0,104730.0,0.095483]
[1737256158374,0.4840996,104740.0,104730.0,0.095483]
[1737256158792,0.4840996,104740.0,104730.0,0.12411134]
[1737256159396,0.5795736,104740.0,104730.0,0.02862834]
[1737256159594,0.65310784,104740.0,104730.0,0.02862834]
[1737256159885,0.5795736,104740.0,104730.0,0.02862834]
[1737256161313,0.70598723,104740.0,104730.0,0.02862834]
[1737256163366,0.78548723,104740.0,104730.0,0.02862834]
[1737256164434,0.70598723,104740.0,104730.0,0.02862834]
[1737256168588,0.57787062,104740.0,104730.0,0.02862834]
[1737256170009,0.69878683,104740.0,104730.0,0.02862834]
[1737256170225,0.79878683,104740.0,104730.0,0.02862834]
[1737256170436,0.87828683,104740.0,104730.0,0.02862834]
[1737256170647,0.095483,104730.0,104720.0,0.0004287]
[1737256171003,0.26825805,104730.0,104720.0,0.0004287]
[1737256171760,0.52218393,104730.0,104720.0,0.02893088]
[1737256172371,0.60163817,104730.0,104720.0,0.02893088]
[1737256172683,0.72653817,104730.0,104720.0,0.01139076]
[1737256172876,0.76020178,104730.0,104720.0,0.01139076]
[1737256173087,0.85944259,104730.0,104720.0,0.01139076]
[1737256173472,0.86020178,104730.0,104720.0,0.01139076]
[1737256174366,0.96756835,104730.0,104720.0,0.01139076]
[1737256174978,0.96756835,104730.0,104720.0,0.0004287]
[1737256175539,1.44273578,104730.0,104720.0,0.0004287]
[1737256176750,0.16903524,104710.0,104700.0,0.02890555]
[1737256176972,0.26827605,104710.0,104700.0,0.0299959]
[1737256177171,0.26827605,104710.0,104700.0,0.01764644]
[1737256177995,0.19474181,104710.0,104700.0,0.11315644]
[1737256178346,0.79190617,104710.0,104700.0,0.11315644]
[1737256178775,1.15010402,104710.0,104700.0,0.01764644]
[1737256178943,1.18447059,104710.0,104700.0,0.01764644]
[1737256180219,1.18447059,104710.0,104700.0,0.01747033]
[1737256180629,0.84323382,104710.0,104700.0,0.01747033]
[1737256180932,0.9150518,104710.0,104700.0,0.00652051]
[1737256181147,0.88068523,104710.0,104700.0,0.00652051]
[1737256181353,0.80886725,104710.0,104700.0,0.00652051]
[1737256181701,0.86745994,104710.0,104700.0,0.00652051]
[1737256182106,0.83379633,104710.0,104700.0,0.00652051]
[1737256182524,0.90241662,104710.0,104700.0,0.00652051]
[1737256183492,0.90829662,104710.0,104700.0,0.00652051]
[1737256183639,0.95868202,104710.0,104700.0,0.00652051]
[1737256184374,1.1855543,104710.0,104700.0,0.00652051]
[1737256184534,1.12371691,104710.0,104680.0,0.50781627]
[1737256184736,0.38578181,104700.0,104680.0,0.50781627]
[1737256185542,0.38578181,104700.0,104690.0,0.09552]
[1737256185948,0.09974081,104700.0,104690.0,0.09552]
[1737256186357,0.20113081,104700.0,104690.0,0.09552]
[1737256186616,0.28620564,104700.0,104690.0,0.09552]
[1737256187389,0.18481564,104700.0,104690.0,0.09552]
[1737256187596,0.19069564,104700.0,104690.0,0.09552]
[1737256188314,0.10562081,104700.0,104690.0,0.09552]
[1737256188585,0.09974081,104700.0,104690.0,0.09552]
[1737256190620,0.09974081,104700.0,104690.0,0.10646982]
[1737256195384,0.09974081,104700.0,104690.0,0.10945707]
[1737256197266,0.10064129,104700.0,104690.0,0.10945707]
[1737256200897,0.19615129,104700.0,104690.0,0.10945707]
[1737256201383,0.36892634,104700.0,104690.0,0.01393707]
[1737256201573,0.19615129,104700.0,104690.0,0.01393707]
[1737256202513,0.44628553,104700.0,104690.0,0.01393707]
[1737256202856,0.44628553,104700.0,104690.0,0.00298725]
[1737256203980,0.65897021,104700.0,104690.0,0.00298725]
[1737256204764,0.172138,104670.0,104660.0,0.0004279]
[1737256204964,0.37379305,104670.0,104660.0,0.0004279]
[1737256205455,0.41909024,104650.0,104640.0,0.0004879]
[1737256205674,0.52421105,104650.0,104640.0,0.0004879]
[1737256205810,0.55849989,104650.0,104640.0,0.0004879]
[1737256206018,0.52421105,104650.0,104640.0,0.0004879]
[1737256206426,0.44721105,104650.0,104640.0,0.0004879]
[1737256206638,0.48149989,104650.0,104640.0,0.0004879]
[1737256206805,0.48199958,104650.0,104640.0,0.0004879]
[1737256207013,1.01483201,104650.0,104640.0,0.0004879]
[1737256207214,1.08836625,104650.0,104640.0,0.0004879]
[1737256207430,1.19067282,104650.0,104640.0,0.0004879]
[1737256207856,1.13659625,104650.0,104640.0,0.0004879]
[1737256208083,1.07047053,104650.0,104640.0,0.0004879]
[1737256208422,0.67652232,104640.0,104630.0,0.0001321]
[1737256208712,0.77576313,104640.0,104630.0,0.0001321]
[1737256208907,0.72500394,104640.0,104630.0,0.0001321]
[1737256209124,0.92310394,104640.0,104630.0,0.0001321]
[1737256209437,0.345184,104620.0,104610.0,0.0004287]
[1737256209619,0.67383905,104620.0,104610.0,0.0004287]
[1737256209849,0.82976213,104620.0,104610.0,0.0004287]
[1737256210055,0.92900294,104620.0,104610.0,0.0004287]
[1737256210982,1.14051944,104620.0,104610.0,0.0004287]
[1737256211395,0.386819,104600.0,104580.0,0.30261662]
[1737256211577,0.19485181,104590.0,104580.0,0.30261662]
[1737256211768,0.09924081,104590.0,104580.0,0.30261662]
[1737256211993,0.19485181,104590.0,104580.0,0.11137662]
[1737256212286,0.09924081,104590.0,104580.0,0.11137662]
[1737256212628,0.09973988,104590.0,104580.0,0.11137662]
[1737256218114,0.09973988,104590.0,104580.0,0.095617]
[1737256218301,0.34973988,104590.0,104580.0,0.095616]
[1737256220667,0.10049907,104590.0,104580.0,0.16915024]
[1737256221074,0.10049907,104590.0,104580.0,0.095616]
[1737256222118,0.10049907,104590.0,104580.0,0.0960444]
[1737256222496,0.10139871,104590.0,104580.0,0.0960444]
[1737256223328,0.10139871,104590.0,104580.0,0.09903453]
[1737256231058,0.10139871,104590.0,104580.0,0.10977058]
[1737256231806,0.10139871,104590.0,104580.0,0.11876302]
[1737256235807,0.10139871,104590.0,104580.0,0.11917119]
[1737256236866,0.00139871,104590.0,104580.0,0.34270543]
[1737256237070,0.00139871,104590.0,104580.0,0.41623967]
[1737256237289,0.00139871,104590.0,104580.0,0.46563967]
[1737256237523,0.00139871,104590.0,104580.0,0.3891153]
[1737256240137,0.00077227,104590.0,104580.0,0.3891153]
[1737256240338,0.00077227,104590.0,104580.0,0.46264954]
[1737256240548,0.00077227,104590.0,104580.0,0.3891153]
[1737256241095,0.00077227,104590.0,104580.0,0.38688731]
[1737256241618,0.10077227,104590.0,104580.0,0.26395307]
[1737256243083,0.10001308,104590.0,104580.0,0.26395307]
[1737256243421,0.10001308,104590.0,104580.0,0.11395307]
[1737256243613,0.19562408,104590.0,104580.0,0.11395307]
[1737256243815,0.10001308,104590.0,104580.0,0.26395307]
[1737256244023,0.10001308,104590.0,104580.0,0.11395307]
[1737256245057,0.10001308,104590.0,104580.0,0.11694307]
[1737256248041,0.10001308,104590.0,104580.0,0.26694307]
[1737256248481,0.17851308,104590.0,104580.0,0.26694307]
[1737256251389,0.49765832,104590.0,104580.0,0.02132707]
[1737256252044,0.75558435,104590.0,104580.0,0.02132707]
[1737256253404,0.75546238,104590.0,104580.0,0.01895985]
[1737256254232,0.62085952,104590.0,104580.0,0.01895985]
[1737256254743,0.74385952,104590.0,104580.0,0.0082238]
[1737256255573,0.72846238,104590.0,104580.0,0.0082238]
[1737256255803,0.77158356,104590.0,104580.0,0.0082238]
[1737256256830,0.77158356,104590.0,104580.0,0.0052338]
[1737256256831,0.64858356,104590.0,104580.0,0.0052338]
[1737256259281,0.39445832,104590.0,104580.0,0.0052338]
[1737256260648,0.6070214,104590.0,104580.0,0.0052338]
[1737256261394,0.6070214,104590.0,104580.0,0.00714496]
[1737256261636,0.6070214,104590.0,104580.0,0.00208741]
[1737256261868,0.6070214,104590.0,104580.0,0.00830998]
[1737256262103,0.6070214,104590.0,104580.0,0.00208741]
[1737256262340,0.62508758,104590.0,104580.0,0.00705308]
[1737256262568,0.62508758,104590.0,104580.0,0.00208741]
[1737256263050,0.62508758,104590.0,104580.0,0.00688725]
[1737256263282,0.81962083,104590.0,104580.0,0.00208741]
[1737256263511,0.81962083,104590.0,104580.0,0.00688725]
[1737256263512,0.79507063,104590.0,104580.0,0.00688725]
[1737256263742,0.79507063,104590.0,104580.0,0.00208741]
[1737256263981,0.89507063,104590.0,104580.0,0.00688725]
[1737256264183,0.89507063,104590.0,104580.0,0.00688612]
[1737256265431,1.19160487,104590.0,104580.0,0.00688612]
[1737256265630,1.32253662,104590.0,104580.0,0.00688612]
[1737256265748,1.32253662,104590.0,104580.0,0.0004284]
[1737256266574,0.319329,104570.0,104560.0,0.00299067]
[1737256266796,0.54679499,104570.0,104560.0,0.00299067]
[1737256267124,0.55259499,104570.0,104560.0,0.00299067]
[1737256267328,0.31856981,104570.0,104560.0,0.00299067]
[1737256267605,0.15,104550.0,104540.0,0.286957]
[1737256267754,0.24924081,104550.0,104540.0,0.286957]
[1737256268886,0.24924081,104550.0,104540.0,0.28745607]
[1737256269050,0.24924081,104550.0,104540.0,0.29044674]
[1737256269249,0.54212305,104550.0,104540.0,0.00348974]
[1737256270230,0.46858881,104550.0,104540.0,0.00348974]
[1737256270794,0.54212305,104550.0,104540.0,0.00348974]
[1737256271200,0.54212305,104550.0,104540.0,0.00798594]
[1737256272610,0.46858881,104550.0,104540.0,0.00798594]
[1737256273383,0.42308881,104550.0,104540.0,0.10364294]
[1737256273803,0.42308881,104550.0,104540.0,0.17717718]
[1737256273804,0.1,104550.0,104540.0,0.17717718]
[1737256273999,0.1,104550.0,104540.0,0.18004294]
[1737256275294,0.1,104550.0,104540.0,0.19084832]
[1737256276099,0.19924081,104550.0,104540.0,0.11444832]
[1737256277620,0.1,104560.0,104550.0,0.095648]
[1737256277844,0.19924081,104560.0,104550.0,0.095648]
[1737256278042,0.19924081,104560.0,104550.0,0.09736189]
[1737256278242,0.34924081,104560.0,104550.0,0.09736189]
[1737256278443,0.19924081,104560.0,104550.0,0.09736189]
[1737256278680,0.34924081,104560.0,104550.0,0.10816727]
[1737256278975,0.19924081,104560.0,104550.0,0.10816727]
[1737256279139,0.34924081,104560.0,104550.0,0.10816727]
[1737256279344,0.19924081,104560.0,104550.0,0.10816727]
[1737256279543,0.34924081,104560.0,104550.0,0.10816727]
[1737256281723,0.25,104560.0,104550.0,0.10816727]
[1737256282006,0.60912564,104580.0,104560.0,0.095638]
[1737256282142,0.09924081,104570.0,104560.0,0.286912]
[1737256282351,0.24924081,104570.0,104560.0,0.286912]
[1737256282557,0.09924081,104570.0,104560.0,0.286912]
[1737256282923,0.19924081,104570.0,104560.0,0.286912]
[1737256283268,0.19924081,104570.0,104560.0,0.436912]
[1737256283873,0.19924081,104570.0,104560.0,0.44771738]
[1737256285539,0.19924081,104570.0,104560.0,0.44941297]
[1737256286242,0.19924081,104570.0,104560.0,0.45432568]
[1737256287746,0.19924081,104570.0,104560.0,0.47257379]
[1737256289416,0.23189964,104580.0,104570.0,0.095629]
[1737256289614,0.18114045,104580.0,104570.0,0.095629]
[1737256289871,0.18114045,104580.0,104570.0,0.10219285]
[1737256289872,0.33114045,104580.0,104570.0,0.10219285]
[1737256290280,0.43114045,104580.0,104570.0,0.10219285]
[1737256290888,0.43114045,104580.0,104570.0,0.11299823]
[1737256293270,0.42745303,104580.0,104570.0,0.11299823]
[1737256295466,0.35014045,104580.0,104570.0,0.11299823]
[1737256297236,0.20014045,104580.0,104570.0,0.11299823]
[1737256297443,0.35014045,104580.0,104570.0,0.11299823]
[1737256298557,0.20014045,104580.0,104570.0,0.11299823]
[1737256298768,0.35014045,104580.0,104570.0,0.11299823]
[1737256299351,0.44576045,104580.0,104570.0,0.01736923]
[1737256299587,0.42836045,104580.0,104570.0,0.01736923]
[1737256299786,0.47666045,104580.0,104570.0,0.01736923]
[1737256300392,0.5994355,104580.0,104570.0,0.01736923]
[1737256300946,0.5994355,104580.0,104570.0,0.00656385]
[1737256301853,0.89624161,104580.0,104570.0,0.00656385]
[1737256303046,0.7970008,104580.0,104570.0,0.00656385]
[1737256303247,0.7970008,104580.0,104570.0,0.00699225]
[1737256304290,1.00900517,104580.0,104570.0,0.00699225]
[1737256305387,0.90900517,104580.0,104570.0,0.00699225]
[1737256306377,0.92532863,104580.0,104570.0,0.00699225]
[1737256307252,1.01631665,104580.0,104570.0,0.00699225]
[1737256307982,0.92532863,104580.0,104570.0,0.00699225]
[1737256309004,0.92509912,104580.0,104570.0,0.00699225]
[1737256310202,0.7978965,104580.0,104570.0,0.00699225]
[1737256312256,0.92522628,104580.0,104570.0,0.00699225]
[1737256314704,0.7978965,104580.0,104570.0,0.00699225]
[1737256315722,0.87143074,104580.0,104570.0,0.00699225]
[1737256315921,0.7978965,104580.0,104570.0,0.00699225]
[1737256316343,0.87143074,104580.0,104570.0,0.00699225]
[1737256316547,0.7978965,104580.0,104570.0,0.00699225]
[1737256316990,0.88314786,104580.0,104570.0,0.00699225]
[1737256317149,0.7978965,104580.0,104570.0,0.00699225]
[1737256319997,0.62829301,104580.0,104570.0,0.00699225]
[1737256320377,0.53843531,104580.0,104570.0,0.00699225]
[1737256320743,0.49013531,104580.0,104570.0,0.00699225]
[1737256321696,0.40753531,104580.0,104570.0,0.00699225]
[1737256322075,0.40797372,104580.0,104570.0,0.00699225]
[1737256324129,0.40797372,104580.0,104570.0,0.01779757]
[1737256326549,0.55797372,104580.0,104570.0,0.01779757]
[1737256326746,0.40797372,104580.0,104570.0,0.01779757]
[1737256327558,0.50797372,104580.0,104570.0,0.01779757]
[1737256327790,0.28488805,104580.0,104570.0,0.11342657]
[1737256327989,0.43488805,104580.0,104570.0,0.11342657]
[1737256328181,0.08564724,104580.0,104570.0,0.23666081]
[1737256328394,0.18564724,104580.0,104570.0,0.24072657]
[1737256328756,0.10067013,104580.0,104570.0,0.24072657]
[1737256329525,0.25067013,104580.0,104570.0,0.24072657]
[1737256330183,0.34629013,104580.0,104570.0,0.24072657]
[1737256330307,0.34629013,104580.0,104570.0,0.11342657]
[1737256330819,0.25067013,104580.0,104570.0,0.11342657]
[1737256334463,0.34629013,104580.0,104570.0,0.11342657]
[1737256334884,0.34629013,104580.0,104570.0,0.01779757]
[1737256335107,0.44553094,104580.0,104570.0,0.01779757]
[1737256335302,0.19553094,104580.0,104570.0,0.01779757]
[1737256336805,0.28050805,104580.0,104570.0,0.01779757]
[1737256339915,0.40797372,104580.0,104570.0,0.01779757]
[1737256340982,0.48607372,104580.0,104570.0,0.01779757]
[1737256341379,0.65884877,104580.0,104570.0,0.01779757]
[1737256341590,0.70444877,104580.0,104570.0,0.01779757]
[1737256342202,0.70444877,104580.0,104570.0,0.00699225]
[1737256342414,0.85444877,104580.0,104570.0,0.00699225]
[1737256342821,0.85401036,104580.0,104570.0,0.00699225]
[1737256343337,0.75476955,104580.0,104570.0,0.00699225]
[1737256343619,0.82830379,104580.0,104570.0,0.00699225]
[1737256343774,0.92830379,104580.0,104570.0,0.00699225]
[1737256344183,1.10130379,104580.0,104570.0,0.00699225]
[1737256345191,1.14342466,104580.0,104570.0,0.00699225]
[1737256345399,1.14342466,104580.0,104570.0,0.0004284]
[1737256345632,1.14342466,104580.0,104570.0,0.00531044]
[1737256347475,1.14342466,104580.0,104570.0,0.0004284]
[1737256348172,1.04342466,104580.0,104570.0,0.0004284]
[1737256348392,1.04342466,104580.0,104570.0,0.00531044]
[1737256348570,1.14266547,104580.0,104570.0,0.0004284]
[1737256348774,1.14266547,104580.0,104570.0,0.00531044]
[1737256349008,1.14266547,104580.0,104570.0,0.0004284]
[1737256349193,1.14266547,104580.0,104570.0,0.00698774]
[1737256349405,1.14266547,104580.0,104570.0,0.0021057]
[1737256349556,0.99266547,104580.0,104570.0,0.0021057]
[1737256349962,0.99266547,104580.0,104570.0,0.0004284]
[1737256350524,1.46369355,104580.0,104570.0,0.0004284]
[1737256350681,0.221748,104550.0,104540.0,0.00391873]
[1737256350888,0.40028305,104550.0,104540.0,0.00391873]
[1737256351206,0.40028305,104550.0,104540.0,0.00667575]
[1737256351421,0.40028305,104550.0,104540.0,0.00368449]
[1737256352727,0.40028305,104550.0,104540.0,0.00541668]
[1737256353150,0.7815244,104550.0,104540.0,0.00541668]
[1737256353562,0.7965898,104550.0,104540.0,0.00541668]
[1737256354446,0.6271492,104550.0,104540.0,0.00541668]
[1737256356011,0.54785496,104550.0,104540.0,0.00541668]
[1737256356219,0.42175496,104550.0,104540.0,0.00541668]
[1737256356799,0.4952892,104550.0,104540.0,0.00541668]
[1737256357023,0.59453001,104550.0,104540.0,0.00541668]
[1737256357232,0.4952892,104550.0,104540.0,0.00541668]
[1737256357385,0.28348845,104550.0,104540.0,0.00541668]
[1737256357787,0.26842305,104550.0,104540.0,0.00541668]
[1737256357995,0.26842305,104550.0,104540.0,0.00092747]
[1737256365159,0.19488881,104550.0,104540.0,0.00092747]
[1737256370931,0.44488881,104550.0,104540.0,0.00092747]
[1737256371064,0.34488881,104550.0,104540.0,0.00092747]
[1737256371262,0.44488881,104550.0,104540.0,0.00092747]
[1737256371906,0.386919,104560.0,104540.0,0.55650347]
[1737256372135,0.15,104550.0,104540.0,0.36519047]
[1737256377218,0.245648,104550.0,104540.0,0.36519047]
[1737256377439,0.34488881,104550.0,104540.0,0.07822747]
[1737256377636,0.44488881,104550.0,104540.0,0.00092747]
[1737256380346,0.34924081,104550.0,104540.0,0.09658447]
[1737256380546,0.44488881,104550.0,104540.0,0.09658447]
[1737256381482,0.25,104550.0,104540.0,0.09658447]
[1737256383993,0.2803593,104560.0,104550.0,0.095648]
[1737256384239,0.43396111,104560.0,104550.0,0.095648]
[1737256385394,0.34924081,104560.0,104550.0,0.095648]
[1737256388013,0.30833539,104570.0,104560.0,0.095638]
[1737256388225,0.5813818,104570.0,104560.0,0.095638]
[1737256388969,0.5770108,104570.0,104560.0,0.095638]
[1737256389130,0.4813818,104570.0,104560.0,0.095638]
[1737256389315,0.08561994,104570.0,104560.0,0.16917224]
[1737256389515,0.08561994,104570.0,104560.0,0.3959285]
[1737256389731,0.08561994,104570.0,104560.0,0.39497224]
[1737256390741,0.00089964,104570.0,104560.0,0.39497224]
[1737256392048,0.00089964,104570.0,104560.0,0.245638]
[1737256393416,0.00089964,104570.0,104560.0,0.31917224]
[1737256396344,0.00089964,104570.0,104560.0,0.33232978]
[1737256398560,0.00089964,104570.0,104560.0,0.41302978]
[1737256402516,0.00089964,104570.0,104560.0,0.65440483]
[1737256402711,0.00089964,104570.0,104560.0,0.66020483]
[1737256404441,0.00089964,104570.0,104560.0,0.58667059]
[1737256404971,0.00089964,104570.0,104560.0,0.58087059]
[1737256405174,0.00089964,104570.0,104560.0,0.45862978]
[1737256409775,0.00089964,104570.0,104560.0,0.58087059]
[1737256410273,0.00089964,104570.0,104560.0,0.58129839]
[1737256410803,0.00089964,104570.0,104560.0,0.65483263]
[1737256411101,0.00089964,104570.0,104560.0,0.58129839]
[1737256412838,0.00089964,104570.0,104560.0,0.65483263]
[1737256413023,0.00089964,104570.0,104560.0,0.58129839]
[1737256426544,0.00089964,104570.0,104560.0,0.65483263]
[1737256426753,0.00089964,104570.0,104560.0,0.68463796]
[1737256429008,0.00056977,104580.0,104570.0,0.118629]
[1737256429204,0.00056977,104580.0,104570.0,0.36589429]
[1737256429504,0.00056977,104580.0,104570.0,0.36493829]
[1737256429643,0.00056977,104580.0,104570.0,0.51493829]
[1737256429849,0.00056977,104580.0,104570.0,0.59363829]
[1737256430544,0.00056977,104580.0,104570.0,0.62344601]
[1737256430960,0.00056977,104580.0,104570.0,0.65344601]
[1737256431544,0.00056977,104580.0,104570.0,0.68294549]
[1737256431749,0.00056977,104580.0,104570.0,0.98344445]
[1737256432675,0.00056977,104580.0,104570.0,1.27225673]
[1737256434859,0.00056977,104580.0,104570.0,1.27797673]
[1737256435293,0.00056977,104580.0,104570.0,1.27225673]
[1737256435603,0.00056977,104580.0,104570.0,1.27797673]
[1737256436687,0.00056977,104580.0,104570.0,1.10675982]
[1737256438776,0.00056977,104580.0,104570.0,1.27797673]
[1737256441065,0.00056977,104580.0,104570.0,1.13090825]
[1737256441270,0.00056977,104580.0,104570.0,1.27797673]
[1737256444866,0.00056977,104580.0,104570.0,1.49199787]
[1737256446431,0.00056977,104580.0,104570.0,1.49242567]
[1737256447038,0.00056977,104580.0,104570.0,1.40681722]
[1737256452364,0.00056977,104580.0,104570.0,1.40109722]
[1737256452580,0.00056977,104580.0,104570.0,1.40681722]
[1737256453453,0.00072875,104590.0,104580.0,0.41568848]
[1737256453654,0.00072875,104590.0,104580.0,0.54473701]
[1737256454710,0.00068875,104590.0,104580.0,0.54478683]
[1737256455090,0.00068875,104590.0,104580.0,0.63059652]
[1737256456943,0.00068875,104590.0,104580.0,0.7590092]
[1737256457802,0.07608875,104590.0,104580.0,0.7590092]
[1737256460589,0.07608875,104590.0,104580.0,0.77095055]
[1737256461396,0.07608875,104590.0,104580.0,0.76902345]
[1737256461740,0.07608875,104590.0,104580.0,0.62956207]
[1737256462024,0.07608875,104590.0,104580.0,0.77470345]
[1737256462528,0.07608875,104590.0,104580.0,0.62388207]
[1737256462731,0.07608875,104590.0,104580.0,0.77470345]
[1737256466397,0.00068875,104590.0,104580.0,0.85090345]
[1737256466602,0.0319377,104600.0,104580.0,0.73228345]
[1737256466804,0.0754,104610.0,104600.0,0.118602]
[1737256467025,0.38124135,104630.0,104620.0,0.095584]
[1737256467309,0.38124135,104630.0,104620.0,0.21782481]
[1737256467744,0.53124135,104650.0,104640.0,0.095565]
[1737256467950,0.53124135,104650.0,104640.0,0.19232592]
[1737256468372,0.53124135,104650.0,104640.0,0.19237574]
[1737256469209,0.15,104650.0,104640.0,0.19237574]
[1737256469340,0.15,104650.0,104640.0,0.09561482]
[1737256469550,0.15,104650.0,104640.0,0.16928321]
[1737256469757,0.19819817,104650.0,104640.0,0.16928321]
[1737256469972,0.12359817,104650.0,104640.0,0.3929516]
[1737256471927,0.12359817,104650.0,104640.0,0.52087241]
[1737256472722,0.12359817,104650.0,104640.0,0.32496321]
[1737256472926,0.12359817,104650.0,104640.0,0.35496321]
[1737256473323,0.12359817,104650.0,104640.0,0.36687882]
[1737256473791,0.12359817,104650.0,104640.0,0.36119882]
[1737256480638,0.12359817,104650.0,104640.0,0.28753043]
[1737256481428,0.22359817,104650.0,104640.0,0.19196543]
[1737256481567,0.56839498,104650.0,104640.0,0.12561482]
[1737256482656,0.56839498,104650.0,104640.0,0.03004982]
[1737256483648,0.31839498,104650.0,104640.0,0.03004982]
[1737256484626,0.31839498,104650.0,104640.0,4.982e-05]
[1737256488058,0.41839498,104650.0,104640.0,0.09561482]
[1737256488662,0.41839498,104650.0,104640.0,4.982e-05]
[1737256489907,0.31839498,104650.0,104640.0,4.982e-05]
[1737256498936,0.41839498,104650.0,104640.0,4.982e-05]
[1737256500687,0.41839498,104650.0,104640.0,0.09561482]
[1737256500890,0.27359817,104650.0,104640.0,0.09561482]
[1737256501095,0.27359817,104650.0,104640.0,0.17023878]
[1737256501237,0.07629817,104650.0,104640.0,0.32023878]
[1737256501452,0.07629817,104650.0,104640.0,0.31928321]
[1737256501649,0.00089817,104650.0,104640.0,0.31928321]
[1737256502336,0.00089817,104650.0,104640.0,0.24561482]
[1737256503678,0.00089817,104650.0,104640.0,0.31928321]
[1737256504929,0.00089817,104650.0,104640.0,0.24561482]
[1737256505083,0.09645417,104650.0,104640.0,4.982e-05]
[1737256505285,0.42585417,104650.0,104640.0,4.982e-05]
[1737256505732,0.42585417,104650.0,104640.0,0.03004982]
[1737256505938,0.42585417,104650.0,104640.0,0.12561482]
[1737256506659,0.42585417,104650.0,104640.0,0.03004982]
[1737256507884,0.33029817,104650.0,104640.0,0.12561482]
[1737256508432,0.23029817,104650.0,104640.0,0.12561482]
[1737256509634,0.23029817,104650.0,104640.0,0.20023879]
[1737256509886,0.23029817,104650.0,104640.0,0.19928321]
[1737256510320,0.15089817,104650.0,104640.0,0.20023875]
[1737256510495,0.00089817,104650.0,104640.0,0.19928321]
[1737256510868,0.00089817,104650.0,104640.0,0.20023871]
[1737256511249,0.00089817,104650.0,104640.0,0.43003871]
[1737256511450,0.00089817,104650.0,104640.0,0.5027516]
[1737256512184,0.00089817,104650.0,104640.0,0.60199241]
[1737256512544,0.00089817,104650.0,104640.0,0.03004982]
[1737256512545,0.37893898,104650.0,104640.0,0.03004982]
[1737256512774,0.58605727,104650.0,104640.0,4.982e-05]
[1737256512977,0.324374,104630.0,104620.0,0.38543928]
[1737256513185,0.4030032,104630.0,104620.0,0.38543928]
[1737256513387,0.4030032,104630.0,104620.0,0.21402114]
[1737256513798,0.8202832,104630.0,104620.0,0.21402114]
[1737256514011,0.39805239,104620.0,104610.0,0.63647178]
[1737256514227,0.4972932,104620.0,104610.0,0.63647178]
[1737256514640,0.6472932,104620.0,104610.0,0.63647178]
[1737256514855,0.4972932,104620.0,104610.0,0.0004277]
[1737256515515,0.4972532,104620.0,104610.0,0.0004277]
[1737256516208,0.70905396,104620.0,104610.0,0.0004277]
[1737256516559,0.54110557,104620.0,104610.0,0.0004277]
[1737256517092,0.71091863,104620.0,104610.0,0.0004277]
[1737256517881,0.32930481,104620.0,104610.0,0.0004277]
[1737256518082,0.32930481,104620.0,104610.0,0.00668259]
[1737256518284,0.32930481,104620.0,104610.0,0.0004277]
[1737256519221,0.32930481,104620.0,104610.0,0.00668259]
[1737256519371,0.32930481,104620.0,104610.0,0.0004277]
[1737256519576,0.32930481,104620.0,104610.0,0.00668259]
[1737256521049,0.32358481,104620.0,104610.0,0.00668259]
[1737256521815,0.42358481,104620.0,104610.0,0.00668259]
[1737256522156,0.37418481,104620.0,104610.0,0.00668259]
[1737256522678,0.27418481,104620.0,104610.0,0.00668259]
[1737256522947,0.37418481,104620.0,104610.0,0.00668259]
[1737256523151,0.27418481,104620.0,104610.0,0.00668259]
[1737256524641,0.29478481,104620.0,104610.0,0.10227559]
[1737256524869,0.29478481,104620.0,104610.0,0.00668259]
[1737256525569,0.19478481,104620.0,104610.0,0.00668259]
[1737256525978,0.19478481,104620.0,104610.0,0.03668259]
[1737256527753,0.19568362,104620.0,104610.0,0.03668259]
[1737256528483,0.34955201,104620.0,104610.0,0.00668259]
[1737256529934,0.43435508,104620.0,104610.0,0.00668259]
[1737256530247,0.70632347,104620.0,104610.0,0.00668259]
[1737256530464,0.63265508,104620.0,104610.0,0.00668259]
[1737256530666,0.63265508,104620.0,104610.0,0.0004277]
[1737256530951,0.63265508,104620.0,104610.0,0.00413462]
[1737256531144,0.63265508,104620.0,104610.0,0.00297567]
[1737256531494,0.75556428,104620.0,104610.0,0.00297567]
[1737256531687,1.37516811,104620.0,104610.0,0.00297567]
[1737256531891,0.345611,104590.0,104580.0,0.0004277]
[1737256532188,0.44485181,104590.0,104580.0,0.0004277]
[1737256533260,0.44499488,104590.0,104580.0,0.0004277]